Workbook

Sheet паспорт
A1: ПАТ "УКРТРАНСГАЗ" | G1: ПАСПОРТ ФІЗИКО-ХІМІЧНИХ ПОКАЗНИКІВ ПРИРОДНОГО ГАЗУ №98
A2: Філія "УМГ "Київтрансгаз" | G2: переданогоДиканським ЛВУМГ та прийнятого ПАТ "Полтавагаз"
A3: Диканський п/м Диканське ЛВУМГ | G3: Маршрут №98
A4: Вимірювальна хіміко-аналітична лабораторія
A5: Свідоцтво № 186-13 чинне до 05.12.2018 р. | K5: по газопроводу "ЄФРЕМІВКА - ДИКАНЬКА - КИЇВ" | V5: за період з | X5: 2017-05-01 | Z5: по | AA5: 31.05.2017р.
A7: Число місяця | B7: Компонентний склад, % мол. | N7: Фізико-хімічні показники газу обчислені на основі компонентного складу, 101,325 кПа | X7: Температура точки роси за вологою (Р = 3.92 МПа), °С | Y7: Температура точки роси за вуглеводнями, °С | Z7: Вміст сірководню, г/м3 | AA7: Вміст меркаптанової сірки, г/м3 | AB7: Вміст механічних домішок, г/м3
N8: Густина абсолютна, кг/м3,при 20 ºС, | O8: Температура вимірювання/згоряння при 20/25°С
B9: метан, С1 | C9: етан, С2 | D9: пропан, С3 | E9: ізо-бутан, і-С4 | F9: н-бутан, н-С4 | G9: нео-пентан, нео-С5 | H9: ізо-пентан, і-С5 | I9: н-пентан, н-С5 | J9: гексани та вищі, С6+ | K9: кисень, О2 | L9: азот, N2 | M9: діоксид вуглецю, CО2 | O9: Теплота згоряння нижча | R9: Теплота згоряння вища | U9: Число Воббе вище
O10: ккал/м3 | P10: МДж/м3 | Q10: кВт⋅год/м3 | R10: ккал/м3 | S10: МДж/м3 | T10: кВт⋅год/м3 | U10: ккал/м3 | V10: МДж/м3 | W10: кВт⋅год/м3
A11: 1 | O11: 8068.784332 | P11: 33.784 | Q11: =P11/3.6 -> 9.384444444 | R11: 8940 | S11: 37.428 | T11: =S11/3.6 -> 10.39666667 | AC11: =SUM(B11:M11)+$K$42+$N$42 -> 0
A12: 2 | O12: 8068.784332 | P12: 33.784 | Q12: =P12/3.6 -> 9.384444444 | R12: 8940 | S12: 37.428 | T12: =S12/3.6 -> 10.39666667 | AC12: 0
A13: 3 | O13: 8068.784332 | P13: 33.784 | Q13: 9.384444444 | R13: 8940 | S13: 37.428 | T13: 10.39666667 | AC13: 0 | AD13: =IF(AC13=100,"ОК"," ") -> 
A14: 4 | B14: 89.6721 | C14: 3.6437 | D14: 1.0547 | E14: 0.1531 | F14: 0.2603 | G14: 0.0048 | H14: 0.0812 | I14: 0.0717 | J14: 0.1091 | K14: 0.0038 | L14: 4.4178 | M14: 0.5276 | N14: 0.7443 | O14: 8096.87601 | P14: 33.9 | Q14: 9.416666667 | R14: 8969.284544 | S14: 37.5526 | T14: 10.43127778 | U14: 11409.26678 | V14: 47.7706 | W14: 13.26897615 | X14: -4 | Y14: -4.3 | AC14: 99.9999 | AD14: =IF(AC14=100,"ОК"," ") -> 
A15: 5 | O15: 8096.87601 | P15: 33.9 | Q15: 9.416666667 | R15: 8969.284544 | S15: 37.5526 | T15: 10.43127778 | AC15: 0
A16: 6 | O16: 8096.87601 | P16: 33.9 | Q16: 9.416666667 | R16: 8969.284544 | S16: 37.5526 | T16: 10.43127778 | AC16: 0
A17: 7 | O17: 8096.87601 | P17: 33.9 | Q17: 9.416666667 | R17: 8969.284544 | S17: 37.5526 | T17: 10.43127778 | AC17: 0
A18: 8 | O18: 8096.87601 | P18: 33.9 | Q18: 9.416666667 | R18: 8969.284544 | S18: 37.5526 | T18: 10.43127778 | AC18: 0
A19: 9 | O19: 8096.87601 | P19: 33.9 | Q19: 9.416666667 | R19: 8969.284544 | S19: 37.5526 | T19: 10.43127778 | AC19: 0
A20: 10 | O20: 8096.87601 | P20: 33.9 | Q20: 9.416666667 | R20: 8969.284544 | S20: 37.5526 | T20: 10.43127778 | AC20: 0
A21: 11 | B21: 89.5683 | C21: 3.6591 | D21: 1.0613 | E21: 0.1517 | F21: 0.249 | G21: 0.0048 | H21: 0.0738 | I21: 0.0622 | J21: 0.1225 | K21: 0.0029 | L21: 4.5301 | M21: 0.5142 | N21: 0.7446 | O21: 8088.44475 | P21: 33.8647 | Q21: 9.406861111 | R21: 8959.94567 | S21: 37.5135 | T21: 10.42041667 | U21: 11394.79341 | V21: 47.71 | W21: 13.25214362 | X21: 2.6 | Y21: 6.6 | AC21: 99.9999
A22: 12 | O22: 8088.44475 | P22: 33.8647 | Q22: 9.406861111 | R22: 8959.94567 | S22: 37.5135 | T22: 10.42041667 | AC22: 0
A23: 13 | O23: 8088.44475 | P23: 33.8647 | Q23: 9.406861111 | R23: 8959.94567 | S23: 37.5135 | T23: 10.42041667 | AC23: 0
A24: 14 | O24: 8088.44475 | P24: 33.8647 | Q24: 9.406861111 | R24: 8959.94567 | S24: 37.5135 | T24: 10.42041667 | AC24: 0
A25: 15 | B25: 89.4772 | C25: 3.6718 | D25: 1.0506 | E25: 0.149 | F25: 0.2429 | G25: 0.0048 | H25: 0.0724 | I25: 0.0611 | J25: 0.0948 | K25: 0.0025 | L25: 4.6555 | M25: 0.5174 | N25: 0.7442 | O25: 8066.829196 | P25: 33.7742 | Q25: 9.381722222 | R25: 8936.371579 | S25: 37.4148 | T25: 10.393 | U25: 11368.06783 | V25: 47.5981 | W25: 13.22106178 | X25: 3.2 | Y25: 4.3 | Z25: <0,006 | AA25: <0,02 | AB25: від. | AC25: 100 | AD25: ОК
A26: 16 | O26: 8066.829196 | P26: 33.7742 | Q26: 9.381722222 | R26: 8936.371579 | S26: 37.4148 | T26: 10.393 | AC26: 0
A27: 17 | O27: 8066.829196 | P27: 33.7742 | Q27: 9.381722222 | R27: 8936.371579 | S27: 37.4148 | T27: 10.393 | AC27: 0
A28: 18 | O28: 8066.829196 | P28: 33.7742 | Q28: 9.381722222 | R28: 8936.371579 | S28: 37.4148 | T28: 10.393 | AC28: 0
A29: 19 | O29: 8066.829196 | P29: 33.7742 | Q29: 9.381722222 | R29: 8936.371579 | S29: 37.4148 | T29: 10.393 | AC29: 0
A30: 20 | O30: 8066.829196 | P30: 33.7742 | Q30: 9.381722222 | R30: 8936.371579 | S30: 37.4148 | T30: 10.393 | AC30: 0 | AD30: =IF(AC30=100,"ОК"," ") -> 
A31: 21 | O31: 8066.829196 | P31: 33.7742 | Q31: 9.381722222 | R31: 8936.371579 | S31: 37.4148 | T31: 10.393 | AC31: 0
A32: 22 | O32: 8066.829196 | P32: 33.7742 | Q32: 9.381722222 | R32: 8936.371579 | S32: 37.4148 | T32: 10.393 | AC32: 0
A33: 23 | O33: 8066.829196 | P33: 33.7742 | Q33: 9.381722222 | R33: 8936.371579 | S33: 37.4148 | T33: 10.393 | AC33: 0 | AD33: =IF(AC33=100,"ОК"," ") -> 
A34: 24 | O34: 8066.829196 | P34: 33.7742 | Q34: 9.381722222 | R34: 8936.371579 | S34: 37.4148 | T34: 10.393 | AC34: 0
A35: 25 | B35: 89.6599 | C35: 3.6673 | D35: 1.0556 | E35: 0.1486 | F35: 0.2428 | G35: 0.0048 | H35: 0.0701 | I35: 0.0582 | J35: 0.0949 | K35: 0.0105 | L35: 4.4594 | M35: 0.5277 | N35: 0.7433 | O35: 8080.085143 | P35: 33.8297 | Q35: 9.397138889 | R35: 8951.132256 | S35: 37.4766 | T35: 10.41016667 | U35: 11393.67089 | V35: 47.7053 | W35: 13.25083813 | X35: 2.9 | Y35: -0.1 | AC35: 99.9998
A36: 26 | O36: 8080.085143 | P36: 33.8297 | Q36: 9.397138889 | R36: 8951.132256 | S36: 37.4766 | T36: 10.41016667 | AC36: 0
A37: 27 | O37: 8080.085143 | P37: 33.8297 | Q37: 9.397138889 | R37: 8951.132256 | S37: 37.4766 | T37: 10.41016667 | AC37: 0
A38: 28 | O38: 8080.085143 | P38: 33.8297 | Q38: 9.397138889 | R38: 8951.132256 | S38: 37.4766 | T38: 10.41016667
A39: 29 | O39: 8080.085143 | P39: 33.8297 | Q39: 9.397138889 | R39: 8951.132256 | S39: 37.4766 | T39: 10.41016667
A40: 30 | O40: 8080.085143 | P40: 33.8297 | Q40: 9.397138889 | R40: 8951.132256 | S40: 37.4766 | T40: 10.41016667
A41: 31 | O41: 8080.085143 | P41: 33.8297 | Q41: 9.397138889 | R41: 8951.132256 | S41: 37.4766 | T41: 10.41016667
A42: Рівень одоризації відповідає чинним нормативним документам | O42: =SUMPRODUCT(O11:O41,' розрахунок'!F7:F37)/' розрахунок'!F38 -> 8079.200464 | P42: =SUMPRODUCT(P11:P41,' розрахунок'!F7:F37)/' розрахунок'!F38 -> 33.82613355 | Q42: =SUMPRODUCT(Q11:Q41,' розрахунок'!F7:F37)/' розрахунок'!F38 -> 9.396148208 | R42: =SUMPRODUCT(R11:R41,' розрахунок'!F7:F37)/' розрахунок'!F38 -> 8950.079502 | S42: =SUMPRODUCT(S11:S41,' розрахунок'!F7:F37)/' розрахунок'!F38 -> 37.47202266 | T42: =SUMPRODUCT(T11:T41,' розрахунок'!F7:F37)/' розрахунок'!F38 -> 10.40889518
H43: Середньозважене значення теплоти згоряння:
B46: Заступник начальника Диканського ЛВУМГ 31.05.2017р. | L46: Герасименко І.М. | Z46: =TODAY() -> 2017-06-01
B48: Завідувач лабораторії Диканського ЛВУМГ | L48: Горшковоз О.В. | Z48: =TODAY() -> 2017-06-01
B50: Начальник служби ГВМ та М Диканського ЛВУМГ | L50: Левадний С.А. | Z50: =TODAY() -> 2017-06-01

Sheet розрахунок
A2: Додаток до Паспорту фізико-хімічних показників природного газу по маршруту №98
A4: Число місяця | B4: Теплота згоряння вища, МДж/м3 | C4: Полтавська область | F4: Загальний обсяг газу, м3
C5: Обсяг газу переданого за добу, м3
C6: ГРС Ковалівка | D6: ГРС Руновщина | E6: ГРС Божково
A7: 1 | B7: =паспорт!S11 -> 37.428 | C7: 14811.4 | D7: 514.37 | E7: 580.1 | F7: =SUM(C7:E7) -> 15905.87
A8: 2 | B8: =паспорт!S12 -> 37.428 | C8: 15285.4 | D8: 488.38 | E8: 685.28 | F8: 16459.06
A9: 3 | B9: =паспорт!S13 -> 37.428 | C9: 15429.18 | D9: 428.82 | E9: 512.24 | F9: 16370.24
A10: 4 | B10: =паспорт!S14 -> 37.5526 | C10: 15456.66 | D10: 390.04 | E10: 550.16 | F10: 16396.86
A11: 5 | B11: =паспорт!S15 -> 37.5526 | C11: 14884.01 | D11: 469.35 | E11: 617.24 | F11: 15970.6
A12: 6 | B12: =паспорт!S16 -> 37.5526 | C12: 14875.15 | D12: 453.85 | E12: 609.97 | F12: 15938.97
A13: 7 | B13: =паспорт!S17 -> 37.5526 | C13: 14373.48 | D13: 422.3 | E13: 531.91 | F13: 15327.69
A14: 8 | B14: =паспорт!S18 -> 37.5526 | C14: 14186.37 | D14: 442.39 | E14: 515.57 | F14: 15144.33
A15: 9 | B15: =паспорт!S19 -> 37.5526 | C15: 14263.34 | D15: 507.9 | E15: 659.51 | F15: 15430.75
A16: 10 | B16: =паспорт!S20 -> 37.5526 | C16: 17722.93 | D16: 825.28 | E16: 902.33 | F16: 19450.54
A17: 11 | B17: =паспорт!S21 -> 37.5135 | C17: 18815.23 | D17: 905.36 | E17: 1006.02 | F17: 20726.61
A18: 12 | B18: =паспорт!S22 -> 37.5135 | C18: 22051.08 | D18: 1298.33 | E18: 1236.18 | F18: 24585.59
A19: 13 | B19: =паспорт!S23 -> 37.5135 | C19: 23647.18 | D19: 1457.11 | E19: 1634.12 | F19: 26738.41
A20: 14 | B20: =паспорт!S24 -> 37.5135 | C20: 21422.09 | D20: 1183.58 | E20: 1351.2 | F20: 23956.87
A21: 15 | B21: =паспорт!S25 -> 37.4148 | C21: 19027.39 | D21: 922.05 | E21: 1029.2 | F21: 20978.64
A22: 16 | B22: =паспорт!S26 -> 37.4148 | C22: 17603.5 | D22: 603.45 | E22: 584.6 | F22: 18791.55
A23: 17 | B23: =паспорт!S27 -> 37.4148 | C23: 18557.52 | D23: 715.75 | E23: 840 | F23: 20113.27
A24: 18 | B24: =паспорт!S28 -> 37.4148 | C24: 19982.94 | D24: 1015.16 | E24: 969.18 | F24: 21967.28
A25: 19 | B25: =паспорт!S29 -> 37.4148 | C25: 20463.49 | D25: 1210.02 | E25: 1261.3 | F25: 22934.81
A26: 20 | B26: =паспорт!S30 -> 37.4148 | C26: 20295.98 | D26: 1090.61 | E26: 1246.26 | F26: 22632.85
A27: 21 | B27: =паспорт!S31 -> 37.4148 | C27: 19067.91 | D27: 977 | E27: 1223.6 | F27: 21268.51
A28: 22 | B28: =паспорт!S32 -> 37.4148 | C28: 17181.65 | D28: 685.04 | E28: 757.85 | F28: 18624.54
A29: 23 | B29: =паспорт!S33 -> 37.4148 | C29: 16053.44 | D29: 520.08 | E29: 671.66 | F29: 17245.18
A30: 24 | B30: =паспорт!S34 -> 37.4148 | C30: 15592.14 | D30: 517.47 | E30: 477.53 | F30: 16587.14
A31: 25 | B31: =паспорт!S35 -> 37.4766 | C31: 15411.67 | D31: 418.15 | E31: 491.77 | F31: 16321.59
A32: 26 | B32: =паспорт!S36 -> 37.4766 | C32: 14933.64 | D32: 376.44 | E32: 547 | F32: 15857.08
A33: 27 | B33: =паспорт!S37 -> 37.4766 | C33: 15227.23 | D33: 471.03 | E33: 625.48 | F33: 16323.74
A34: 28 | B34: =паспорт!S38 -> 37.4766 | C34: 14932.22 | D34: 400.95 | E34: 629.1 | F34: =SUM(C34:E34) -> 15962.27
A35: 29 | B35: =паспорт!S39 -> 37.4766 | C35: 15424.24 | D35: 407.52 | E35: 533.45 | F35: 16365.21
A36: 30 | B36: =паспорт!S40 -> 37.4766 | C36: 15326.77 | D36: 319.07 | E36: 537.99 | F36: 16183.83
A37: 31 | B37: =паспорт!S41 -> 37.4766 | C37: 14517.91 | D37: 391.31 | E37: 566.03 | F37: 15475.25
A38: Загальний обсяг газу, м3 | C38: =SUM(C7:C37) -> 526823.14 | D38: =SUM(D7:D37) -> 20828.16 | E38: =SUM(E7:E37) -> 24383.83 | F38: =SUM(F7:F37) -> 572035.13
A39: Енергія, МДж | C39: =SUMPRODUCT(B7:B37,C7:C37) -> 19741176.01 | D39: =SUMPRODUCT(B7:B37,D7:D37) -> 780434.389 | E39: =SUMPRODUCT(B7:B37,E7:E37) -> 913702.954 | F39: =SUMPRODUCT(B7:B37,F7:F37) -> 21435313.35
A40: Теплота згоряння (середньозважене значення за місяць), МДж/м³ | C40: =C39/C38 -> 37.47211258 | D40: =D39/D38 -> 37.47015526 | E40: 37.47167504 | F40: 37.47202266
A41: Теплота згоряння (середньозважене значення за місяць), ккал/м³ | C41: =C40*238.8459 -> 8950.060454 | D41: =D40*238.8459 -> 8949.592956 | E41: 8949.95595 | F41: 8950.038978
A42: Теплота згоряння (середньозважене значення за місяць), кВт*год./м³ | C42: =C40/3.6 -> 10.40892016 | D42: =D40/3.6 -> 10.40837646 | E42: 10.40879862 | F42: 10.40889518

Sheet додаток
A2: Додаток до Паспорту фізико-хімічних показників природного газу № | E2: 98
A4: Область | B4: ГРС, прямий споживач | C4: Cередньозважене значення вищої теплоти згоряння
C5: МДж/м³ | D5: ккал/м³ | E5: кВт*год./м³
A6: Полтавська область | B6: ГРС Ковалівка | C6: =' розрахунок'!C40 -> 37.47211258 | D6: =' розрахунок'!C41 -> 8950.060454 | E6: =' розрахунок'!C42 -> 10.40892016
B7: ГРС Божково | C7: =' розрахунок'!E40 -> 37.47167504 | D7: =' розрахунок'!E41 -> 8949.95595 | E7: =' розрахунок'!E42 -> 10.40879862
B8: ГРС Руновщина | C8: =' розрахунок'!D40 -> 37.47015526 | D8: =' розрахунок'!D41 -> 8949.592956 | E8: =' розрахунок'!D42 -> 10.40837646
A9: Середньозважене значення вищої теплоти згоряння по маршруту №98 | C9: =' розрахунок'!F40 -> 37.47202266 | D9: =' розрахунок'!F41 -> 8950.038978 | E9: =' розрахунок'!F42 -> 10.40889518
A11: Заступник начальника Диканського ЛВУМГ | C11: Герасименко І.М. | E11: =TODAY() -> 2017-06-01
A13: Завідувач вимірювальної хіміко-аналітичної лабораторії лабораторії | C13: Горшковоз О.В. | E13: =TODAY() -> 2017-06-01
A15: Начальник службиГВ та М | C15: Левадний С.А. | E15: =TODAY() -> 2017-06-01

Sheet variablesList (hidden)
A1: 3 | B1: x:\gaysin | C1: 10, 11, 24, 25, 127, 128, 132, 180, 207, 215 | D1: x:\
B2: x:\Illinci
B3: x:\Talne
